fUST/lending_fUST_20241103
["ID","MTS","AMOUNT","RATE_DAILY","PERIOD"]
[341201605,1730632240549,-151.0,0.00031085,7]
[341201607,1730632240558,-254.95307,0.00031085,7]
[341201609,1730632240567,-5000.0,0.00031085,2]
[341201611,1730632240580,-151.0,0.00031085,7]
[341201613,1730632240591,-151.0,0.00031085,7]
[341201615,1730632240601,-525.175743,0.00031085,7]
[341201617,1730632240611,-151.0,0.00031085,7]
[341201619,1730632240620,-525.175743,0.00031085,7]
[341201621,1730632240630,-151.0,0.00031085,7]
[341201623,1730632240639,-508.566309,0.00031085,7]
[341201625,1730632240649,-508.566309,0.00031085,7]
[341201627,1730632240659,-151.0,0.00031085,7]
[341201630,1730632240668,-291.66478,0.00031085,7]
[341201632,1730632240677,-154.95727,0.00031085,7]
[341201635,1730632240686,-704.83,0.00031086,4]
[341201639,1730632240696,-534.78,0.00031115,3]
[341201642,1730632240706,-204.07,0.00031115,3]
[341201645,1730632240715,-408.13,0.00031125,3]
[341201648,1730632240724,-3701.83,0.00031125,10]
[341201651,1730632240733,-151.0,0.00031135,7]
[341201653,1730632240742,-151.0,0.00031135,7]
[341201656,1730632240752,-294.80087,0.00031135,7]
[341201659,1730632240762,-294.80087,0.00031135,7]
[341201662,1730632240772,-785.09702,0.00031135,7]
[341201665,1730632240782,-785.09702,0.00031135,7]
[341201667,1730632240792,-151.0,0.00031135,7]
[341201669,1730632240802,-151.0,0.00031135,7]
[341201671,1730632240812,-151.0,0.00031135,7]
[341201673,1730632240822,-151.0,0.00031135,7]
[341201675,1730632240831,-151.0,0.00031135,7]
[341201677,1730632240840,-151.0,0.00031135,7]
[341201679,1730632240849,-151.0,0.00031135,7]
[341201681,1730632240858,-151.0,0.00031135,7]
[341201683,1730632240868,-151.0,0.00031135,7]
[341201685,1730632240877,-2402.430795,0.00031135,7]
[341201687,1730632240886,-2402.430795,0.00031135,7]
[341201689,1730632240896,-351.570125,0.00031135,7]
[341201691,1730632240906,-151.0,0.00031135,7]
[341201693,1730632240915,-351.570125,0.00031135,7]
[341201695,1730632240925,-151.0,0.00031135,7]
[341201697,1730632240934,-525.175743,0.00031135,7]
[341201699,1730632240943,-151.0,0.00031135,7]
[341201701,1730632240952,-525.175743,0.00031135,7]
[341201703,1730632240962,-151.0,0.00031135,7]
[341201705,1730632240972,-508.566309,0.00031135,7]
[341201707,1730632240982,-508.566309,0.00031135,7]
[341201709,1730632240992,-151.0,0.00031135,7]
[341201711,1730632241003,-1028.370377,0.00031135,7]
[341201713,1730632241013,-1028.370377,0.00031135,7]
[341201715,1730632241023,-628.46203,0.00031135,7]
[341201717,1730632241033,-628.46203,0.00031135,7]
[341201719,1730632241042,-3567.88887738,0.00031136,2]
[341201721,1730632241051,-151.0,0.00031137,7]
[341201723,1730632241060,-151.420846,0.00031137,7]
[341201725,1730632241070,-151.0,0.00031137,7]
[341201727,1730632241080,-151.0,0.00031137,7]
[341201729,1730632241089,-151.0,0.00031137,7]
[341201731,1730632241100,-151.0,0.00031137,7]
[341201733,1730632241110,-151.0,0.00031137,7]
[341201735,1730632241119,-196.169383,0.00031137,7]
[341201737,1730632241130,-196.169383,0.00031137,7]
[341201739,1730632241139,-151.0,0.00031137,7]
[341201741,1730632241149,-151.0,0.00031137,7]
[341201743,1730632241157,-151.0,0.00031137,7]
[341201745,1730632241166,-152.952186,0.00031137,7]
[341201748,1730632241176,-151.0,0.00031137,3]
[341201750,1730632241185,-294.80087,0.00031137,7]
[341201752,1730632241194,-294.80087,0.00031137,7]
[341201753,1730632241203,-785.09702,0.00031137,7]
[341201755,1730632241213,-785.09702,0.00031137,7]
[341201758,1730632241224,-151.0,0.00031137,7]
[341201759,1730632241234,-151.0,0.00031137,7]
[341201762,1730632241243,-151.0,0.00031137,7]
[341201764,1730632241253,-151.0,0.00031137,7]
[341201765,1730632241264,-165.133894,0.00031137,7]
[341201766,1730632241273,-165.133894,0.00031137,7]
[341201767,1730632241284,-165.133894,0.00031137,7]
[341201768,1730632241293,-165.133894,0.00031137,7]
[341201769,1730632241303,-151.0,0.00031137,7]
[341201770,1730632241315,-151.0,0.00031137,7]
[341201771,1730632241324,-151.0,0.00031137,7]
[341201772,1730632241333,-151.0,0.00031137,7]
[341201773,1730632241346,-151.0,0.00031137,7]
[341201774,1730632241357,-265.642469,0.00031137,7]
[341201775,1730632241369,-151.0,0.00031137,7]
[341201776,1730632241380,-151.0,0.00031137,7]
[341201777,1730632241392,-151.0,0.00031137,7]
[341201778,1730632241406,-151.0,0.00031137,7]
[341201779,1730632241420,-488.448264,0.00031137,7]
[341201780,1730632241434,-488.448264,0.00031137,7]
[341201781,1730632241448,-488.448264,0.00031137,7]
[341201782,1730632241460,-300.99481,0.00031137,7]
[341201783,1730632241472,-300.99481,0.00031137,7]
[341201784,1730632241486,-300.99481,0.00031137,7]
[341201785,1730632241498,-300.99481,0.00031137,7]
[341201786,1730632241513,-300.99481,0.00031137,7]
[341201787,1730632241524,-300.99481,0.00031137,7]
[341201788,1730632241539,-492.797462,0.00031137,7]
[341201789,1730632241553,-492.797462,0.00031137,7]
[341201790,1730632241566,-585.789483,0.00031137,7]
[341201791,1730632241579,-585.789483,0.00031137,7]
[341201792,1730632241592,-585.789483,0.00031137,7]
[341201793,1730632241607,-492.797462,0.00031137,7]
[341201794,1730632241622,-173.925541,0.00031137,7]
[341201795,1730632241634,-585.789483,0.00031137,7]
[341201796,1730632241647,-585.789483,0.00031137,7]
[341201797,1730632241659,-585.789483,0.00031137,7]
[341201798,1730632241673,-492.797462,0.00031137,7]
[341201799,1730632241684,-492.797462,0.00031137,7]
[341201800,1730632241697,-492.797462,0.00031137,7]
[341201801,1730632241711,-2402.430795,0.00031137,7]
[341201802,1730632241724,-2402.430795,0.00031137,7]
[341201803,1730632241735,-1177.643431,0.00031137,7]
[341201804,1730632241746,-1177.643431,0.00031137,7]
[341201805,1730632241759,-1177.643431,0.00031137,7]
[341201806,1730632241772,-2402.430795,0.00031137,7]
[341201807,1730632241784,-2402.430795,0.00031137,7]
[341201808,1730632241795,-1177.643431,0.00031137,7]
[341201809,1730632241806,-1177.643431,0.00031137,7]
[341201810,1730632241818,-1177.643431,0.00031137,7]
[341201811,1730632241831,-351.570125,0.00031137,7]
[341201812,1730632241846,-351.570125,0.00031137,7]
[341201813,1730632241859,-151.0,0.00031137,7]
[341201814,1730632241873,-178.2,0.00031137,7]
[341201815,1730632241886,-351.570125,0.00031137,7]
[341201816,1730632241900,-351.570125,0.00031137,7]
[341201817,1730632241912,-151.0,0.00031137,7]
[341201818,1730632241923,-151.0,0.00031137,7]
[341201819,1730632241936,-151.0,0.00031137,7]
[341201820,1730632241948,-151.0,0.00031137,7]
[341201821,1730632241961,-525.175743,0.00031137,7]
[341201822,1730632241973,-525.175743,0.00031137,7]
[341201823,1730632241984,-252.692259,0.00031137,7]
[341201824,1730632241995,-525.175743,0.00031137,7]
[341201825,1730632242008,-525.175743,0.00031137,7]
[341201826,1730632242019,-525.175743,0.00031137,7]
[341201827,1730632242031,-525.175743,0.00031137,7]
[341201828,1730632242044,-525.175743,0.00031137,7]
[341201829,1730632242057,-525.175743,0.00031137,7]
[341201830,1730632242070,-151.0,0.00031137,7]
[341201831,1730632242083,-151.0,0.00031137,7]
[341201832,1730632242097,-151.0,0.00031137,7]
[341201833,1730632242108,-151.0,0.00031137,7]
[341201834,1730632242119,-508.566309,0.00031137,7]
[341201835,1730632242130,-508.566309,0.00031137,7]
[341201836,1730632242142,-508.566309,0.00031137,7]
[341201837,1730632242154,-508.566309,0.00031137,7]
[341201838,1730632242165,-508.566309,0.00031137,7]
[341201839,1730632242175,-508.566309,0.00031137,7]
[341201840,1730632242185,-508.566309,0.00031137,7]
[341201841,1730632242195,-508.566309,0.00031137,7]
[341201842,1730632242204,-151.0,0.00031137,7]
[341201843,1730632242214,-151.0,0.00031137,7]
[341201844,1730632242225,-151.0,0.00031137,7]
[341201845,1730632242234,-151.0,0.00031137,7]
[341201846,1730632242246,-1028.370377,0.00031137,7]
[341201847,1730632242256,-1028.370377,0.00031137,7]
[341201848,1730632242268,-1028.370377,0.00031137,7]
[341201849,1730632242280,-1028.370377,0.00031137,7]
[341201850,1730632242292,-628.46203,0.00031137,7]
[341201851,1730632242304,-628.46203,0.00031137,7]
[341201852,1730632242315,-628.46203,0.00031137,7]
[341201853,1730632242327,-628.46203,0.00031137,7]
[341201854,1730632242339,-150.645,0.00031138,2]
[341201855,1730632242355,-150.0,0.00031138,2]
[341201856,1730632242365,-486.668,0.00031138,2]
[341201857,1730632242375,-401.486,0.00031138,2]
[341201858,1730632242387,-2402.430795,0.00031138,7]
[341201859,1730632242400,-2402.430795,0.00031138,7]
[341201860,1730632242410,-351.570125,0.00031138,7]
[341201861,1730632242421,-351.570125,0.00031138,7]
[341201862,1730632242433,-151.0,0.00031138,7]
[341201863,1730632242445,-525.175743,0.00031138,7]
[341201864,1730632242456,-525.175743,0.00031138,7]
[341201865,1730632242468,-508.566309,0.00031138,7]
[341201866,1730632242479,-508.566309,0.00031138,7]
[341201867,1730632242489,-151.0,0.00031138,7]
[341201868,1730632242504,-1028.370377,0.00031138,7]
[341201869,1730632242516,-1028.370377,0.00031138,7]
[341201870,1730632242528,-628.46203,0.00031138,7]
[341201871,1730632242538,-628.46203,0.00031138,7]
[341201872,1730632242550,-151.0,0.00031149,7]
[341201873,1730632242562,-151.0,0.00031149,7]
[341201874,1730632242574,-151.0,0.00031149,7]
[341201875,1730632242587,-298.492035,0.00031149,7]
[341201876,1730632242599,-298.492035,0.00031149,7]
[341201877,1730632242707,-153.380429,0.00031149,7]
[341201878,1730632242718,-151.0,0.00031149,7]
[341201879,1730632242727,-196.169383,0.00031149,7]
[341201880,1730632242737,-196.169383,0.00031149,7]
[341201881,1730632242747,-151.0,0.00031149,7]
[341201882,1730632242759,-289.434098,0.00031149,7]
[341201883,1730632242768,-294.80087,0.00031149,7]
[341201884,1730632242778,-294.80087,0.00031149,7]
[341201885,1730632242789,-785.09702,0.00031149,7]
[341201886,1730632242799,-785.09702,0.00031149,7]
[341201887,1730632242810,-785.09702,0.00031149,7]
[341201888,1730632242820,-785.09702,0.00031149,7]
[341201889,1730632242830,-151.0,0.00031149,7]
[341201890,1730632242839,-151.0,0.00031149,7]
[341201891,1730632242849,-151.0,0.00031149,7]
[341201892,1730632242858,-151.0,0.00031149,7]
[341201893,1730632242867,-151.0,0.00031149,7]
[341201894,1730632242876,-151.0,0.00031149,7]
[341201895,1730632242885,-151.0,0.00031149,7]
[341201896,1730632242894,-152.755083,0.00031149,7]
[341201897,1730632242903,-165.133894,0.00031149,7]
[341201898,1730632242911,-165.133894,0.00031149,7]
[341201899,1730632242920,-165.133894,0.00031149,7]
[341201900,1730632242930,-165.133894,0.00031149,7]
[341201901,1730632242939,-151.0,0.00031149,7]
[341201902,1730632242948,-151.0,0.00031149,7]
[341201903,1730632242957,-151.0,0.00031149,7]
[341201904,1730632242967,-151.0,0.00031149,7]
[341201905,1730632242977,-151.0,0.00031149,7]
[341201906,1730632242988,-151.0,0.00031149,7]
[341201907,1730632242997,-151.0,0.00031149,7]
[341201908,1730632243007,-151.0,0.00031149,7]
[341201909,1730632243018,-151.0,0.00031149,7]
[341201910,1730632243028,-151.0,0.00031149,7]
[341201911,1730632243038,-225.394758,0.00031149,7]
[341201912,1730632243048,-488.448264,0.00031149,7]
[341201913,1730632243060,-488.448264,0.00031149,7]
[341201914,1730632243071,-300.99481,0.00031149,7]
[341201915,1730632243080,-300.99481,0.00031149,7]
[341201916,1730632243089,-300.99481,0.00031149,7]
[341201917,1730632243100,-300.99481,0.00031149,7]
[341201918,1730632243109,-585.789483,0.00031149,7]
[341201919,1730632243120,-585.789483,0.00031149,7]
[341201920,1730632243131,-492.797462,0.00031149,7]
[341201921,1730632243141,-585.789483,0.00031149,7]
[341201922,1730632243152,-585.789483,0.00031149,7]
[341201923,1730632243161,-492.797462,0.00031149,7]
[341201924,1730632243170,-492.797462,0.00031149,7]
[341201925,1730632243179,-492.797462,0.00031149,7]
[341201926,1730632243189,-2402.430795,0.00031149,7]
[341201928,1730632243198,-2402.430795,0.00031149,7]
[341201929,1730632243207,-1177.643431,0.00031149,7]
[341201930,1730632243217,-1177.643431,0.00031149,7]
[341201932,1730632243226,-2402.430795,0.00031149,7]
[341201933,1730632243236,-2402.430795,0.00031149,7]
[341201934,1730632243245,-1177.643431,0.00031149,7]
[341201935,1730632243256,-1177.643431,0.00031149,7]
[341201936,1730632243266,-351.570125,0.00031149,7]
[341201937,1730632243275,-351.570125,0.00031149,7]
[341201938,1730632243286,-351.570125,0.00031149,7]
[341201939,1730632243295,-351.570125,0.00031149,7]
[341201940,1730632243305,-151.0,0.00031149,7]
[341201941,1730632243316,-525.175743,0.00031149,7]
[341201942,1730632243326,-525.175739,0.00031149,7]
[341201943,1730632243336,-508.566309,0.00031149,7]
[341201944,1730632243345,-508.566305,0.00031149,7]
[341201945,1730632243355,-151.0,0.00031149,7]
[341201946,1730632243365,-1028.370377,0.00031149,7]
[341201948,1730632243375,-1028.370377,0.00031149,7]
[341201951,1730632243385,-1028.370377,0.00031149,7]
[341201954,1730632243394,-1028.370377,0.00031149,7]
[341201956,1730632243405,-628.46203,0.00031149,7]
[341201957,1730632243416,-628.46203,0.00031149,7]
[341201958,1730632243426,-628.46203,0.00031149,7]
[341201959,1730632243436,-628.46203,0.00031149,7]
[341201962,1730632243447,-420.0,0.00031159,2]
[341201964,1730632243457,-500.0,0.00031173,5]
[341201966,1730632243472,-488.448264,0.00031201,7]
[341201968,1730632243482,-300.99481,0.00031201,7]
[341201971,1730632243492,-300.99481,0.00031201,7]
[341201972,1730632243502,-585.789483,0.00031201,7]
[341201975,1730632243514,-585.789483,0.00031201,7]
[341201977,1730632243524,-492.797462,0.00031201,7]
[341201979,1730632243535,-492.797462,0.00031201,7]
[341201981,1730632243545,-2402.430795,0.00031201,7]
[341201983,1730632243554,-1177.643431,0.00031201,7]
[341201985,1730632243564,-2402.430795,0.00031201,7]
[341201987,1730632243573,-1177.643431,0.00031201,7]
[341201989,1730632243582,-351.570125,0.00031201,7]
[341201991,1730632243591,-351.570125,0.00031201,7]
[341201994,1730632243605,-1028.370377,0.00031201,7]
[341201996,1730632243616,-1028.370377,0.00031201,7]
[341201998,1730632243626,-628.46203,0.00031201,7]
[341202000,1730632243635,-628.46203,0.00031201,7]
[341202002,1730632243645,-165.133894,0.00031211,7]
[341202004,1730632243656,-165.133894,0.00031211,7]
[341202006,1730632243666,-151.0,0.00031211,7]
[341202008,1730632243677,-151.0,0.00031211,7]
[341202011,1730632243688,-294.80087,0.00031218,7]
[341202013,1730632243699,-294.80087,0.00031218,7]
[341202014,1730632243710,-785.09702,0.00031218,7]
[341202015,1730632243721,-785.09702,0.00031218,7]
[341202016,1730632243730,-151.0,0.00031218,7]
[341202017,1730632243739,-151.0,0.00031218,7]
[341202018,1730632243750,-151.0,0.00031218,7]
[341202019,1730632243761,-151.0,0.00031218,7]
[341202020,1730632243771,-151.0,0.00031218,7]
[341202021,1730632243782,-151.0,0.00031219,7]
[341202022,1730632243794,-196.169383,0.00031219,7]
[341202023,1730632243806,-196.169383,0.00031219,7]
[341202024,1730632243815,-151.0,0.00031219,7]
[341202025,1730632243824,-294.80087,0.00031219,7]
[341202026,1730632243835,-294.80087,0.00031219,7]
[341202027,1730632243844,-785.09702,0.00031219,7]
[341202028,1730632243855,-785.09702,0.00031219,7]
[341202029,1730632243864,-151.0,0.00031219,7]
[341202030,1730632243873,-151.0,0.00031219,7]
[341202031,1730632243882,-151.0,0.00031219,7]
[341202032,1730632243892,-165.133894,0.00031219,7]
[341202033,1730632243901,-165.133894,0.00031219,7]
[341202034,1730632243911,-151.0,0.00031219,7]
[341202035,1730632243921,-151.0,0.00031219,7]
[341202036,1730632243930,-151.0,0.00031219,7]
[341202037,1730632243939,-151.0,0.00031219,7]
[341202038,1730632243949,-488.448264,0.00031219,7]
[341202039,1730632243958,-488.448264,0.00031219,7]
[341202040,1730632243968,-300.99481,0.00031219,7]
[341202041,1730632243977,-300.99481,0.00031219,7]
[341202042,1730632243986,-300.99481,0.00031219,7]
[341202043,1730632243996,-300.99481,0.00031219,7]
[341202044,1730632244006,-585.789483,0.00031219,7]
[341202045,1730632244015,-585.789483,0.00031219,7]
[341202046,1730632244024,-585.789483,0.00031219,7]
[341202047,1730632244034,-585.789483,0.00031219,7]
[341202048,1730632244044,-492.797462,0.00031219,7]
[341202049,1730632244053,-492.797462,0.00031219,7]
[341202050,1730632244063,-492.797462,0.00031219,7]
[341202051,1730632244073,-492.797462,0.00031219,7]
[341202052,1730632244083,-2402.430795,0.00031219,7]
[341202054,1730632244093,-2402.430795,0.00031219,7]
[341202056,1730632244111,-1177.643431,0.00031219,7]
[341202057,1730632244122,-1177.643431,0.00031219,7]
[341202058,1730632244133,-2402.430795,0.00031219,7]
[341202059,1730632244143,-2402.4308,0.00031219,7]
[341202060,1730632244152,-1177.643431,0.00031219,7]
[341202061,1730632244162,-1177.643431,0.00031219,7]
[341202062,1730632244172,-351.570125,0.00031219,7]
[341202063,1730632244182,-351.570125,0.00031219,7]
[341202064,1730632244192,-351.570125,0.00031219,7]
[341202065,1730632244202,-351.570116,0.00031219,7]
[341202066,1730632244211,-1028.370377,0.00031219,7]
[341202067,1730632244221,-1028.370377,0.00031219,7]
[341202068,1730632244230,-1028.370377,0.00031219,7]
[341202069,1730632244240,-1028.370368,0.00031219,7]
[341202070,1730632244250,-628.46203,0.00031219,7]
[341202071,1730632244260,-628.46203,0.00031219,7]
[341202072,1730632244271,-628.46203,0.00031219,7]
[341202073,1730632244282,-628.462023,0.00031219,7]
[341202074,1730632244294,-151.0,0.00031221,7]
[341202075,1730632244305,-151.0,0.00031221,7]
[341202076,1730632244316,-151.0,0.00031221,7]
[341202077,1730632244327,-151.0,0.00031221,7]
[341202078,1730632244337,-151.0,0.00031221,7]
[341202079,1730632244347,-298.492035,0.00031221,7]
[341202080,1730632244356,-298.492035,0.00031221,7]
[341202081,1730632244366,-151.0,0.00031221,7]
[341202082,1730632244375,-151.0,0.00031221,7]
[341202083,1730632244386,-151.0,0.00031221,7]
[341202084,1730632244398,-283.365748,0.00031221,7]
[341202085,1730632244410,-246.345708,0.00031221,7]
[341202086,1730632244420,-151.0,0.00031221,7]
[341202087,1730632244431,-294.80087,0.00031221,7]
[341202088,1730632244445,-294.80087,0.00031221,7]
[341202089,1730632244455,-785.09702,0.00031221,7]
[341202090,1730632244465,-785.09702,0.00031221,7]
[341202091,1730632244475,-151.0,0.00031221,7]
[341202092,1730632244486,-151.0,0.00031221,7]
[341202093,1730632244495,-156.014671,0.00031221,7]
[341202094,1730632244507,-165.133894,0.00031221,7]
[341202095,1730632244517,-165.133894,0.00031221,7]
[341202096,1730632244526,-165.133894,0.00031221,7]
[341202097,1730632244535,-165.133894,0.00031221,7]
[341202098,1730632244546,-151.0,0.00031221,7]
[341202099,1730632244557,-151.0,0.00031221,7]
[341202100,1730632244567,-151.0,0.00031221,7]
[341202101,1730632244578,-250.016662,0.00031221,7]
[341202102,1730632244588,-151.0,0.00031221,7]
[341202103,1730632244601,-151.0,0.00031221,7]
[341202104,1730632244611,-488.448259,0.00031221,7]
[341202105,1730632244622,-300.99481,0.00031221,7]
[341202106,1730632244632,-300.994802,0.00031221,7]
[341202107,1730632244641,-585.789483,0.00031221,7]
[341202108,1730632244651,-585.78948,0.00031221,7]
[341202109,1730632244662,-492.797462,0.00031221,7]
[341202110,1730632244674,-492.797457,0.00031221,7]
[341202111,1730632244685,-1177.643431,0.00031221,7]
[341202112,1730632244695,-1177.643423,0.00031221,7]
[341202113,1730632244706,-151.0,0.00031228,7]
[341202114,1730632244717,-151.0,0.00031228,7]
[341202115,1730632244727,-151.0,0.00031228,7]
[341202116,1730632244736,-151.0,0.00031228,7]
[341202117,1730632244746,-151.0,0.00031228,7]
[341202118,1730632244757,-151.0,0.00031228,7]
[341202119,1730632244767,-173.253521,0.00031228,7]
[341202120,1730632244778,-151.0,0.00031228,7]
[341202121,1730632244789,-151.0,0.00031228,7]
[341202122,1730632244798,-151.0,0.00031228,7]
[341202123,1730632244808,-158.767385,0.00031228,7]
[341202124,1730632244818,-151.0,0.00031228,7]
[341202125,1730632244827,-151.0,0.00031228,7]
[341202126,1730632244838,-151.0,0.00031228,7]
[341202127,1730632244849,-151.0,0.00031228,7]
[341202128,1730632244858,-502.55214816,0.00031228,4]
[341202129,1730632244868,-151.0,0.00031228,7]
[341202130,1730632244877,-151.0,0.00031228,7]
[341202131,1730632244887,-151.0,0.00031228,7]
[341202132,1730632244897,-151.0,0.00031228,7]
[341202133,1730632244907,-151.0,0.00031228,7]
[341202134,1730632244918,-151.0,0.00031228,7]
[341202135,1730632244929,-151.0,0.00031228,7]
[341202136,1730632244939,-177.887748,0.00031228,7]
[341202137,1730632244950,-298.492035,0.00031228,7]
[341202138,1730632244960,-298.492035,0.00031228,7]
[341202139,1730632244971,-298.492035,0.00031228,7]
[341202140,1730632244982,-298.492035,0.00031228,7]
[341202141,1730632244992,-298.492035,0.00031228,7]
[341202142,1730632245003,-298.492035,0.00031228,7]
[341202143,1730632245013,-298.492035,0.00031228,7]
[341202144,1730632245023,-298.492035,0.00031228,7]
[341202145,1730632245035,-151.0,0.00031228,7]
[341202146,1730632245044,-151.0,0.00031228,7]
[341202147,1730632245053,-151.0,0.00031228,7]
[341202148,1730632245063,-151.0,0.00031228,7]
[341202149,1730632245073,-151.0,0.00031228,7]
[341202150,1730632245154,-169.52479,0.00031228,7]
[341202151,1730632245175,-151.0,0.00031228,7]
[341202152,1730632245185,-151.0,0.00031228,7]
[341202153,1730632245195,-151.0,0.00031228,7]
[341202154,1730632245205,-151.0,0.00031228,7]
[341202155,1730632245215,-151.0,0.00031228,7]
[341202156,1730632245224,-151.0,0.00031228,7]
[341202157,1730632245234,-151.0,0.00031228,7]
[341202158,1730632245243,-151.0,0.00031228,7]
[341202159,1730632245253,-151.0,0.00031228,7]
[341202160,1730632245262,-151.0,0.00031228,7]
[341202161,1730632245272,-196.169383,0.00031228,7]
[341202162,1730632245283,-196.169383,0.00031228,7]
[341202163,1730632245293,-196.169383,0.00031228,7]
[341202164,1730632245303,-196.169383,0.00031228,7]
[341202165,1730632245314,-196.169383,0.00031228,7]
[341202166,1730632245324,-196.169383,0.00031228,7]
[341202167,1730632245334,-196.169383,0.00031228,7]
[341202168,1730632245343,-196.169383,0.00031228,7]
[341202169,1730632245354,-196.169383,0.00031228,7]
[341202170,1730632245364,-196.169383,0.00031228,7]
[341202171,1730632245373,-196.169383,0.00031228,7]
[341202172,1730632245384,-196.169383,0.00031228,7]
[341202173,1730632245394,-151.0,0.00031228,7]
[341202174,1730632245404,-152.192664,0.00031228,7]
[341202175,1730632245414,-151.0,0.00031228,7]
[341202176,1730632245424,-151.0,0.00031228,7]
[341202177,1730632245434,-294.80087,0.00031228,7]
[341202178,1730632245445,-294.80087,0.00031228,7]
[341202179,1730632245454,-294.80087,0.00031228,7]
[341202180,1730632245465,-294.80087,0.00031228,7]
[341202181,1730632245477,-294.80087,0.00031228,7]
[341202182,1730632245489,-294.80087,0.00031228,7]
[341202183,1730632245499,-294.80087,0.00031228,7]
[341202184,1730632245513,-294.800869,0.00031228,7]
[341202185,1730632245525,-785.09702,0.00031228,7]
[341202186,1730632245536,-785.09702,0.00031228,7]
[341202187,1730632245546,-785.09702,0.00031228,7]
[341202188,1730632245555,-785.09702,0.00031228,7]
[341202189,1730632245565,-785.09702,0.00031228,7]
[341202190,1730632245575,-785.097019,0.00031228,7]
[341202191,1730632245586,-151.0,0.00031228,7]
[341202192,1730632245597,-151.0,0.00031228,7]
[341202193,1730632245608,-151.0,0.00031228,7]
[341202194,1730632245617,-151.0,0.00031228,7]
[341202195,1730632245628,-151.0,0.00031228,7]
[341202196,1730632245640,-151.0,0.00031228,7]
[341202197,1730632245650,-165.133894,0.00031228,7]
[341202198,1730632245662,-165.133897,0.00031228,7]
[341202199,1730632245673,-151.0,0.00031228,7]
[341202200,1730632245684,-151.0,0.00031228,7]
[341202201,1730632245696,-151.0,0.00031228,7]
[341202202,1730632245708,-151.0,0.00031228,7]
[341202203,1730632245719,-151.0,0.00031228,7]
[341202204,1730632245730,-151.0,0.00031228,7]
[341202205,1730632245740,-151.0,0.00031228,7]
[341202206,1730632245750,-151.0,0.00031229,7]
[341202207,1730632245760,-151.0,0.00031229,7]
[341202208,1730632245771,-151.0,0.00031229,7]
[341202209,1730632245782,-151.0,0.00031229,7]
[341202210,1730632245792,-151.0,0.00031229,7]
[341202211,1730632245803,-265.922427,0.00031229,7]
[341202212,1730632245813,-151.0,0.00031229,7]
[341202213,1730632245824,-192.101992,0.00031229,7]
[341202214,1730632245834,-298.492035,0.00031229,7]
[341202215,1730632245847,-298.492035,0.00031229,7]
[341202216,1730632245858,-298.492035,0.00031229,7]
[341202217,1730632245868,-298.492035,0.00031229,7]
[341202218,1730632245879,-298.492035,0.00031229,7]
[341202219,1730632245890,-298.492035,0.00031229,7]
[341202220,1730632245903,-153.428923,0.00031229,7]
[341202221,1730632245914,-151.0,0.00031229,7]
[341202222,1730632245925,-151.0,0.00031229,7]
[341202223,1730632245936,-151.0,0.00031229,7]
[341202224,1730632245945,-240.494494,0.00031229,7]
[341202225,1730632245956,-196.169383,0.00031229,7]
[341202226,1730632245966,-196.169383,0.00031229,7]
[341202227,1730632245977,-500.0,0.00031231,4]
[341202228,1730632245987,-151.0,0.00031231,7]
[341202229,1730632245997,-153.241741,0.00031231,7]